fUSD/lending_fUSD_20260628
["ID","MTS","AMOUNT","RATE_DAILY","PERIOD"]
[426559374,1782592238000,-1809.11347833,0.000181,2]
[426559371,1782592238000,-244.14000536,0.00018,2]
[426559372,1782592238000,-350.0,0.00018,2]
[426559379,1782592238000,-4938.169,0.000183,2]
[426559370,1782592238000,-1212.30630841,0.00018,2]
[426559369,1782592238000,-20863.09145979,0.00018,2]
[426559390,1782592238000,-3104.99,0.00018951,2]
[426559373,1782592238000,-250.0,0.0001809,2]
[426559383,1782592238000,-1270.01,0.00018599,2]
[426559376,1782592238000,-4938.169,0.000181,2]
[426559389,1782592238000,-460.85847546,0.000188,2]
[426559386,1782592238000,-304.73606291,0.0001872,2]
[426559404,1782592238000,-500.0,0.00019999,2]
[426559403,1782592238000,-500.0,0.00019999,2]
[426559402,1782592238000,-3160.92397569,0.00019999,2]
[426559401,1782592238000,-151.0,0.00019997,2]
[426559400,1782592238000,-151.0,0.00019997,2]
[426559395,1782592238000,-187.55,0.00019798,2]
[426559398,1782592238000,-838.45,0.00019926,2]
[426559405,1782592238000,-2972.2618254,0.0002,2]
[426559399,1782592238000,-834.27,0.00019926,2]
[426559397,1782592238000,-572.84,0.00019916,2]
[426559392,1782592238000,-724.98881643,0.00019293,2]
[426559394,1782592238000,-2236.00160813,0.00019344,2]
[426559393,1782592238000,-500.0,0.00019293,2]
[426559391,1782592238000,-168.48,0.00019062,2]
[426559396,1782592238000,-500.0,0.000199,7]
[426559388,1782592238000,-4477.31052454,0.000188,2]
[426559439,1782592240000,-190.85089719,0.0002,2]
[426559427,1782592240000,-400.0,0.0002,2]
[426559429,1782592240000,-180.0,0.0002,2]
[426559433,1782592240000,-151.0,0.0002,2]
[426559435,1782592240000,-151.0,0.0002,2]
[426559437,1782592240000,-151.0,0.0002,2]
[426559431,1782592240000,-239.0,0.0002,2]
[426559428,1782592240000,-154.0,0.0002,2]
[426559438,1782592240000,-151.0,0.0002,2]
[426559430,1782592240000,-153.0,0.0002,2]
[426559436,1782592240000,-151.0,0.0002,2]
[426559434,1782592240000,-182.200192,0.0002,2]
[426559440,1782592240000,-190.85089719,0.0002,2]
[426559423,1782592240000,-13100.94011727,0.0002,2]
[426559432,1782592240000,-168.0,0.0002,2]
[426559420,1782592240000,-1064.2347152,0.0002,2]
[426559418,1782592240000,-200.0,0.0002,2]
[426559424,1782592240000,-18145.05025818,0.0002,2]
[426559443,1782592240000,-190.85089719,0.0002,2]
[426559410,1782592240000,-1561.68552523,0.0002,2]
[426559409,1782592240000,-2333.41306952,0.0002,2]
[426559412,1782592240000,-26055.32989191,0.0002,2]
[426559411,1782592240000,-179.70047968,0.0002,2]
[426559413,1782592240000,-393.67267305,0.0002,2]
[426559419,1782592240000,-38028.20361113,0.0002,2]
[426559414,1782592240000,-3950.0,0.0002,2]
[426559422,1782592240000,-937.28408885,0.0002,2]
[426559421,1782592240000,-52601.91694148,0.0002,2]
[426559426,1782592240000,-183.95274368,0.0002,2]
[426559417,1782592240000,-541.24868632,0.0002,2]
[426559415,1782592240000,-26913.81153106,0.0002,2]
[426559425,1782592240000,-5609.65719188,0.0002,2]
[426559416,1782592240000,-1318.41381806,0.0002,2]
[426559441,1782592240000,-190.85089719,0.0002,2]
[426559450,1782592240000,-412.0,0.00020767,2]
[426559445,1782592240000,-343.66,0.00020366,2]
[426559465,1782592240000,-168.48,0.00021785,2]
[426559473,1782592240000,-245.16255815,0.0002211,2]
[426559467,1782592240000,-2215.22981241,0.00022,2]
[426559474,1782592240000,-156.84109196,0.00022146,2]
[426559464,1782592240000,-299.13905264,0.000216,2]
[426559466,1782592240000,-5000.0,0.00021918,2]
[426559468,1782592240000,-300.0,0.00022,2]
[426559470,1782592240000,-168.0,0.00022,2]
[426559471,1782592240000,-239.0,0.00022,2]
[426559469,1782592240000,-180.0,0.00022,2]
[426559475,1782592240000,-381.61122014,0.00022407,2]
[426559477,1782592240000,-381.61122012,0.00022407,2]
[426559478,1782592240000,-356.1,0.00022466,2]
[426559442,1782592240000,-190.85089719,0.0002,2]
[426559476,1782592240000,-381.61122012,0.00022407,2]
[426559462,1782592240000,-724.98881643,0.00021523,2]
[426559463,1782592240000,-2236.00160813,0.00021567,2]
[426559472,1782592240000,-168.0,0.00022,2]
[426559461,1782592240000,-226.50032392,0.000215,2]
[426559453,1782592240000,-180.0,0.00021,2]
[426559444,1782592240000,-150.0,0.00020277,2]
[426559447,1782592240000,-408.0,0.00020554,2]
[426559448,1782592240000,-1503.65085823,0.0002057,2]
[426559449,1782592240000,-605.59056312,0.000207,2]
[426559451,1782592240000,-601.57329322,0.00020849,7]
[426559452,1782592240000,-154.0,0.00021,2]
[426559446,1782592240000,-482.56,0.00020366,2]
[426559459,1782592240000,-4882.77601282,0.00021273,2]
[426559457,1782592240000,-407.0,0.00021193,2]
[426559458,1782592240000,-1270.01,0.00021272,2]
[426559460,1782592240000,-58679.33114724,0.000215,2]
[426559455,1782592240000,-239.0,0.00021,2]
[426559454,1782592240000,-153.0,0.00021,2]
[426559456,1782592240000,-168.0,0.00021,2]
[426559525,1782592241000,-1252.0,0.00025269,5]
[426559519,1782592241000,-4189.59975425,0.00024849,7]
[426559517,1782592241000,-154.57,0.00024658,2]
[426559516,1782592241000,-154.49,0.00024658,2]
[426559513,1782592241000,-151.0,0.00024658,2]
[426559518,1782592241000,-2800.64655743,0.00024849,7]
[426559515,1782592241000,-154.62,0.00024658,2]
[426559512,1782592241000,-192.45,0.00024658,2]
[426559524,1782592241000,-509.48847727,0.00025197,7]
[426559510,1782592241000,-500.0,0.00024438,2]
[426559511,1782592241000,-168.48,0.00024508,2]
[426559520,1782592241000,-5668.6707,0.00024849,7]
[426559529,1782592241000,-152.0,0.0002566,3]
[426559523,1782592241000,-184.0,0.00025,2]
[426559531,1782592241000,-240.0,0.0002566,3]
[426559521,1782592241000,-192.0,0.00025,2]
[426559522,1782592241000,-239.10058497,0.00025,2]
[426559528,1782592241000,-152.0,0.0002566,3]
[426559527,1782592241000,-152.0,0.0002566,3]
[426559526,1782592241000,-1312.0,0.00025269,5]
[426559530,1782592241000,-152.0,0.0002566,3]
[426559532,1782592241000,-150.0,0.00025675,7]
[426559538,1782592241000,-1026.0,0.000258,5]
[426559533,1782592241000,-2591.17503326,0.000257,2]
[426559509,1782592241000,-1587.56143864,0.00024349,7]
[426559534,1782592241000,-177.26856624,0.00025754,2]
[426559507,1782592241000,-311.59,0.0002411,2]
[426559498,1782592241000,-187.55,0.00023757,2]
[426559508,1782592241000,-156.84109195,0.00024146,2]
[426559536,1782592241000,-184.60396211,0.00025754,2]
[426559479,1782592241000,-151.0,0.00022497,2]
[426559486,1782592241000,-3409.77,0.00022562,2]
[426559480,1782592241000,-500.0,0.00022499,2]
[426559482,1782592241000,-151.0,0.000225,2]
[426559483,1782592241000,-151.0,0.000225,2]
[426559485,1782592241000,-150.99,0.00022562,2]
[426559481,1782592241000,-36231.81670332,0.000225,2]
[426559484,1782592241000,-5014.38,0.00022562,2]
[426559491,1782592241000,-180.0,0.00023,2]
[426559488,1782592241000,-253.51,0.00022562,2]
[426559490,1782592241000,-534.16285894,0.0002271,2]
[426559487,1782592241000,-9999.99,0.00022562,2]
[426559489,1782592241000,-500.0,0.00022575,2]
[426559492,1782592241000,-239.0,0.00023,2]
[426559496,1782592241000,-324.30939278,0.00023491,2]
[426559495,1782592241000,-1503.65085823,0.00023436,2]
[426559493,1782592241000,-168.0,0.00023,2]
[426559494,1782592241000,-486.04857365,0.000232,2]
[426559497,1782592241000,-724.98881643,0.00023752,2]
[426559499,1782592241000,-2236.00160813,0.00023789,2]
[426559500,1782592241000,-3600.0,0.00024,2]
[426559503,1782592241000,-11211.54695065,0.00024,2]
[426559506,1782592241000,-168.0,0.00024,2]
[426559502,1782592241000,-1262.22610443,0.00024,2]
[426559504,1782592241000,-180.0,0.00024,2]
[426559505,1782592241000,-239.0,0.00024,2]
[426559501,1782592241000,-7989.11727774,0.00024,2]
[426559535,1782592241000,-195.42025863,0.00025754,2]
[426559514,1782592241000,-151.0,0.00024658,2]
[426559539,1782592241000,-55764.92210786,0.000258,2]
[426559568,1782592241000,-182.88475588,0.00026345,2]
[426559571,1782592241000,-279.45227963,0.00026345,2]
[426559580,1782592241000,-1270.01,0.00026799,2]
[426559577,1782592241000,-515.90549202,0.000267,2]
[426559570,1782592241000,-219.16723054,0.00026345,2]
[426559574,1782592241000,-164.85433086,0.00026345,2]
[426559575,1782592241000,-185.33688547,0.00026345,2]
[426559576,1782592241000,-818.82331669,0.000267,2]
[426559573,1782592241000,-326.3696401,0.00026345,2]
[426559572,1782592241000,-231.49008386,0.00026345,2]
[426559581,1782592241000,-1270.01,0.00026799,2]
[426559593,1782592241000,-151.0,0.000268,2]
[426559579,1782592241000,-225.52881582,0.0002679,2]
[426559592,1782592241000,-151.0,0.000268,2]
[426559584,1782592241000,-500.0,0.00026799,2]
[426559587,1782592241000,-508802.07725509,0.000268,2]
[426559585,1782592241000,-500.0,0.00026799,2]
[426559588,1782592241000,-151.0,0.000268,2]
[426559590,1782592241000,-151.0,0.000268,2]
[426559589,1782592241000,-151.0,0.000268,2]
[426559586,1782592241000,-80416.60348855,0.000268,2]
[426559591,1782592241000,-151.0,0.000268,2]
[426559595,1782592241000,-151.0,0.000268,2]
[426559594,1782592241000,-151.0,0.000268,2]
[426559596,1782592241000,-1000.0,0.000269,9]
[426559537,1782592241000,-500.0,0.00025799,2]
[426559582,1782592241000,-500.0,0.00026799,2]
[426559578,1782592241000,-411.14869386,0.000267,2]
[426559583,1782592241000,-500.0,0.00026799,2]
[426559557,1782592241000,-332.99206917,0.00026345,2]
[426559569,1782592241000,-233.82361164,0.00026345,2]
[426559541,1782592241000,-151.0,0.000258,2]
[426559540,1782592241000,-151.0,0.000258,2]
[426559544,1782592241000,-724.98881643,0.00025982,2]
[426559543,1782592241000,-151.0,0.000258,2]
[426559545,1782592241000,-613.2601364,0.0002599,2]
[426559554,1782592241000,-369.20792423,0.00026313,2]
[426559553,1782592241000,-390.84051726,0.00026312,2]
[426559549,1782592241000,-222.56,0.00026027,7]
[426559547,1782592241000,-220.88023631,0.00026,2]
[426559552,1782592241000,-354.53713248,0.00026312,2]
[426559546,1782592241000,-1136.20792196,0.00026,2]
[426559548,1782592241000,-2236.00160813,0.00026011,2]
[426559555,1782592241000,-1270.01,0.00026344,2]
[426559550,1782592241000,-500.0,0.00026199,2]
[426559567,1782592241000,-399.9486178,0.00026345,2]
[426559551,1782592241000,-1503.65085823,0.00026302,2]
[426559560,1782592241000,-316.69486397,0.00026345,2]
[426559563,1782592241000,-169.86456234,0.00026345,2]
[426559564,1782592241000,-288.483023,0.00026345,2]
[426559566,1782592241000,-373.95249142,0.00026345,2]
[426559565,1782592241000,-321.83141859,0.00026345,2]
[426559542,1782592241000,-151.0,0.000258,2]
[426559558,1782592241000,-173.02822944,0.00026345,2]
[426559561,1782592241000,-288.17303563,0.00026345,2]
[426559562,1782592241000,-280.67778548,0.00026345,2]
[426559559,1782592241000,-225.78755189,0.00026345,2]
[426559556,1782592241000,-233.04669434,0.00026345,2]
[426559619,1782592242000,-154.0,0.00028636,30]
[426559616,1782592242000,-9044.93,0.00028364,7]
[426559618,1782592242000,-159.0,0.00028636,30]
[426559615,1782592242000,-411.14869386,0.0002834,2]
[426559620,1782592242000,-162.0,0.00028636,30]
[426559621,1782592242000,-180.0,0.00028636,30]
[426559624,1782592242000,-152.0,0.00028637,30]
[426559627,1782592242000,-159.0,0.00028637,30]
[426559613,1782592242000,-724.98881643,0.00028211,2]
[426559626,1782592242000,-151.0,0.00028637,30]
[426559625,1782592242000,-153.0,0.00028637,30]
[426559630,1782592242000,-152.0,0.00028637,30]
[426559622,1782592242000,-163.0,0.00028637,30]
[426559628,1782592242000,-239.0,0.00028637,30]
[426559623,1782592242000,-155.0,0.00028637,30]
[426559629,1782592242000,-168.0,0.00028637,30]
[426559604,1782592242000,-249.636,0.00027784,2]
[426559614,1782592242000,-2236.00160813,0.00028233,2]
[426559640,1782592242000,-154.0,0.00029636,30]
[426559605,1782592242000,-191.0,0.00027784,2]
[426559606,1782592242000,-2671.27854089,0.000279,2]
[426559598,1782592242000,-226.72654364,0.00027397,2]
[426559597,1782592242000,-1628.15,0.00027397,10]
[426559602,1782592242000,-167.942,0.00027784,2]
[426559600,1782592242000,-621.85,0.00027451,2]
[426559599,1782592242000,-150.79,0.000274,7]
[426559601,1782592242000,-500.0,0.000275,7]
[426559603,1782592242000,-250.0,0.00027784,2]
[426559607,1782592242000,-2671.27854087,0.000279,2]
[426559611,1782592242000,-818.82331669,0.00028135,2]
[426559609,1782592242000,-174.49982335,0.000279,2]
[426559610,1782592242000,-152.0,0.00027945,3]
[426559612,1782592242000,-621.85,0.00028136,2]
[426559617,1782592242000,-150.0,0.000284,30]
[426559642,1782592242000,-180.0,0.00029636,30]
[426559608,1782592242000,-2671.27854087,0.000279,2]
[426559634,1782592242000,-342.0,0.00029,7]
[426559652,1782592242000,-188.2,0.000298,30]
[426559654,1782592242000,-411.14869386,0.0002998,2]
[426559656,1782592242000,-7274.26285248,0.0003,30]
[426559657,1782592242000,-22500.0,0.0003,2]
[426559667,1782592242000,-500.0,0.00030099,7]
[426559661,1782592242000,-3871.5992773,0.00030024,2]
[426559665,1782592242000,-8730.0,0.0003008,20]
[426559660,1782592242000,-22208.144041,0.00030024,2]
[426559659,1782592242000,-1777.495228,0.00030016,2]
[426559666,1782592242000,-300.0,0.00030099,10]
[426559658,1782592242000,-20542.8919376,0.00030014,2]
[426559668,1782592242000,-13782.98155257,0.000301,7]
[426559663,1782592242000,-1082.1741768,0.00030024,2]
[426559662,1782592242000,-4973.5211041,0.00030024,2]
[426559635,1782592242000,-8730.0,0.0002912,20]
[426559650,1782592242000,-168.0,0.00029637,30]
[426559653,1782592242000,-1600.0,0.000299,10]
[426559664,1782592242000,-33233.3755373,0.00030024,2]
[426559646,1782592242000,-153.0,0.00029637,30]
[426559636,1782592242000,-1503.65085823,0.00029168,2]
[426559632,1782592242000,-500.0,0.00028999,7]
[426559641,1782592242000,-162.0,0.00029636,30]
[426559643,1782592242000,-163.0,0.00029637,30]
[426559631,1782592242000,-2000.0,0.000288,2]
[426559639,1782592242000,-159.0,0.00029636,30]
[426559633,1782592242000,-73689.05424771,0.00029,7]
[426559638,1782592242000,-818.82331669,0.00029569,2]
[426559637,1782592242000,-2000.0,0.000294,2]
[426559645,1782592242000,-155.0,0.00029637,30]
[426559648,1782592242000,-167.0,0.00029637,30]
[426559651,1782592242000,-152.0,0.00029637,30]
[426559649,1782592242000,-239.0,0.00029637,30]
[426559644,1782592242000,-155.0,0.00029637,30]
[426559655,1782592242000,-1270.01,0.00029999,7]
[426559647,1782592242000,-151.0,0.00029637,30]
[426559679,1782592243000,-151.0,0.0002,2]
[426559680,1782592243000,-4621.50684395,0.000301,7]
[426559681,1782592243000,-1484.01812457,0.000301,7]
[426559684,1782592246000,-90.95490959,0.0001449,2]
[426559700,1782592246000,-6707.3823482,0.00030135,2]
[426559697,1782592246000,-151.0,0.000301,7]
[426559688,1782592246000,-154.6,0.0002676,7]
[426559691,1782592246000,-151.0,0.000301,7]
[426559689,1782592246000,-154.6,0.00028863,30]
[426559690,1782592246000,-128558.91239606,0.000301,7]
[426559686,1782592246000,-901.0,0.0002,2]
[426559695,1782592246000,-151.0,0.000301,7]
[426559692,1782592246000,-151.0,0.000301,7]
[426559693,1782592246000,-151.0,0.000301,7]
[426559696,1782592246000,-151.0,0.000301,7]
[426559687,1782592246000,-154.6,0.00024658,2]
[426559694,1782592246000,-151.0,0.000301,7]
[426559699,1782592246000,-22500.0,0.00030125,2]
[426559707,1782592246000,-724.98881643,0.00030441,2]
[426559685,1782592246000,-59.04509041,0.0001449,2]
[426559706,1782592246000,-1270.01,0.00030383,7]
[426559705,1782592246000,-150.79,0.000303,7]
[426559717,1782592246000,-155.0,0.00030637,30]
[426559716,1782592246000,-163.0,0.00030637,30]
[426559718,1782592246000,-153.0,0.00030637,30]
[426559713,1782592246000,-154.0,0.00030636,30]
[426559715,1782592246000,-180.0,0.00030636,30]
[426559712,1782592246000,-159.0,0.00030636,30]
[426559711,1782592246000,-168.669,0.00030564,26]
[426559714,1782592246000,-162.0,0.00030636,30]
[426559710,1782592246000,-1935.009,0.00030564,26]
[426559708,1782592246000,-341.69,0.00030441,30]
[426559703,1782592246000,-341.69,0.00030137,30]
[426559704,1782592246000,-22499.99,0.0003025,2]
[426559698,1782592246000,-943.37,0.00030108,2]
[426559701,1782592246000,-3240.1176671,0.00030135,2]
[426559709,1782592246000,-2236.00160813,0.00030456,2]
[426559702,1782592246000,-192.45,0.00030137,2]
[426559770,1782592247000,-168.0,0.00031637,30]
[426559774,1782592247000,-226.39,0.00031708,3]
[426559768,1782592247000,-239.0,0.00031637,30]
[426559772,1782592247000,-341.68,0.00031659,30]
[426559765,1782592247000,-153.0,0.00031637,30]
[426559762,1782592247000,-180.0,0.00031636,30]
[426559759,1782592247000,-159.0,0.00031636,30]
[426559763,1782592247000,-166.0,0.00031637,30]
[426559760,1782592247000,-154.0,0.00031636,30]
[426559785,1782592247000,-150.0,0.00032091,30]
[426559764,1782592247000,-155.0,0.00031637,30]
[426559787,1782592247000,-341.68,0.00032268,30]
[426559798,1782592247000,-172.46811487,0.00032636,30]
[426559776,1782592247000,-396.23,0.00031708,30]
[426559779,1782592247000,-341.68,0.00031963,30]
[426559783,1782592247000,-1503.65085823,0.00032034,2]
[426559789,1782592247000,-818.82331669,0.00032439,2]
[426559794,1782592247000,-159.0,0.00032636,30]
[426559796,1782592247000,-154.0,0.00032636,30]
[426559761,1782592247000,-162.0,0.00031636,30]
[426559800,1782592247000,-180.0,0.00032636,30]
[426559811,1782592247000,-350.0,0.00032712,25]
[426559792,1782592247000,-341.68,0.00032572,30]
[426559810,1782592247000,-2236.00160813,0.00032678,2]
[426559806,1782592247000,-239.0,0.00032637,30]
[426559809,1782592247000,-724.98881643,0.0003267,2]
[426559758,1782592247000,-3896.893661,0.00031507,7]
[426559751,1782592247000,-3896.893661,0.00031507,7]
[426559755,1782592247000,-3896.893661,0.00031507,7]
[426559720,1782592247000,-239.0,0.00030637,30]
[426559722,1782592247000,-168.0,0.00030637,30]
[426559726,1782592247000,-150.0,0.00030784,2]
[426559725,1782592247000,-341.69,0.00030746,30]
[426559728,1782592247000,-150.0,0.00030784,2]
[426559730,1782592247000,-150.0,0.00030784,2]
[426559735,1782592247000,-515.90549202,0.000308,2]
[426559724,1782592247000,-156.0,0.00030637,30]
[426559733,1782592247000,-2000.0,0.000308,2]
[426559737,1782592247000,-150.0,0.00030945,30]
[426559739,1782592247000,-1000.0,0.00031,7]
[426559741,1782592247000,-183.73152602,0.00031039,2]
[426559757,1782592247000,-3896.893661,0.00031507,7]
[426559740,1782592247000,-818.82331669,0.00031004,2]
[426559754,1782592247000,-3896.893661,0.00031507,7]
[426559746,1782592247000,-500.0,0.00031506,14]
[426559744,1782592247000,-342.0,0.000315,7]
[426559753,1782592247000,-3896.893661,0.00031507,7]
[426559742,1782592247000,-341.68,0.0003105,30]
[426559745,1782592247000,-2000.0,0.000315,2]
[426559748,1782592247000,-3896.893661,0.00031507,7]
[426559752,1782592247000,-3896.893661,0.00031507,7]
[426559747,1782592247000,-3896.893661,0.00031507,7]
[426559750,1782592247000,-3896.893661,0.00031507,7]
[426559749,1782592247000,-3896.893661,0.00031507,7]
[426559756,1782592247000,-3896.893661,0.00031507,7]
[426559743,1782592247000,-341.68,0.00031355,30]
[426559804,1782592247000,-153.0,0.00032637,30]
[426559781,1782592247000,-289.05898316,0.00031977,2]
[426559802,1782592247000,-155.0,0.00032637,30]
[426559844,1782592247000,-300.0,0.00033199,10]
[426559840,1782592247000,-185.28,0.00033191,2]
[426559837,1782592247000,-573.78,0.00033191,2]
[426559846,1782592247000,-150221.47883012,0.000332,2]
[426559858,1782592247000,-3896.893661,0.0003333,7]
[426559848,1782592247000,-150.0,0.00033237,30]
[426559847,1782592247000,-1270.01,0.00033233,7]
[426559854,1782592247000,-300.0,0.00033329,10]
[426559851,1782592247000,-958.89915844,0.00033296,2]
[426559849,1782592247000,-958.89915844,0.0003326,2]
[426559852,1782592247000,-660.39,0.00033304,10]
[426559857,1782592247000,-217.844016,0.0003333,7]
[426559838,1782592247000,-185.18,0.00033191,2]
[426559850,1782592247000,-958.89915844,0.00033279,2]
[426559853,1782592247000,-264.16,0.00033304,2]
[426559855,1782592247000,-100282.2,0.0003333,30]
[426559859,1782592247000,-3896.893661,0.0003333,7]
[426559861,1782592247000,-3896.893665,0.0003333,7]
[426559862,1782592247000,-958.89915844,0.00033344,2]
[426559863,1782592247000,-4583.7387679,0.00033379,2]
[426559860,1782592247000,-3896.893661,0.0003333,7]
[426559865,1782592247000,-4955.3067364,0.00033391,2]
[426559864,1782592247000,-396.6127949,0.00033382,2]
[426559868,1782592247000,-241.4656973,0.00033391,2]
[426559866,1782592247000,-863.8705667,0.00033391,2]
[426559808,1782592247000,-168.0,0.00032637,30]
[426559856,1782592247000,-151.0,0.0003333,7]
[426559845,1782592247000,-500.0,0.00033199,7]
[426559867,1782592247000,-1109.7425604,0.00033391,2]
[426559839,1782592247000,-397.35,0.00033191,2]
[426559812,1782592247000,-222.7,0.00032719,3]
[426559823,1782592247000,-206.92228552,0.00033,30]
[426559814,1782592247000,-500.0,0.00032774,7]
[426559815,1782592247000,-151.0,0.00032775,7]
[426559822,1782592247000,-76111.69661014,0.00033,2]
[426559813,1782592247000,-300.0,0.00032774,10]
[426559817,1782592247000,-341.68,0.00032877,30]
[426559843,1782592247000,-151.0,0.00033198,2]
[426559818,1782592247000,-2100.0,0.000329,12]
[426559816,1782592247000,-500.0,0.00032876,14]
[426559821,1782592247000,-151.0,0.00032965,7]
[426559820,1782592247000,-151.0,0.00032965,7]
[426559833,1782592247000,-341.68,0.00033181,30]
[426559819,1782592247000,-1270.01,0.00032965,7]
[426559835,1782592247000,-644.22,0.00033191,2]
[426559841,1782592247000,-482.44,0.00033191,2]
[426559825,1782592247000,-3896.893661,0.00033,7]
[426559842,1782592247000,-482.58,0.00033191,2]
[426559836,1782592247000,-151.0,0.00033191,2]
[426559832,1782592247000,-1168.65114146,0.00033091,7]
[426559830,1782592247000,-151.0,0.00033,7]
[426559831,1782592247000,-237.94326,0.00033,7]
[426559828,1782592247000,-151.0,0.00033,7]
[426559826,1782592247000,-3896.893661,0.00033,7]
[426559827,1782592247000,-3896.893661,0.00033,7]
[426559824,1782592247000,-3896.893661,0.00033,7]
[426559834,1782592247000,-573.78,0.00033191,2]
[426559829,1782592247000,-151.0,0.00033,7]
[426559903,1782592248000,-300.0,0.0003355,2]
[426559913,1782592248000,-300.16872689,0.0003355,2]
[426559911,1782592248000,-584.88332166,0.0003355,2]
[426559917,1782592248000,-454.07889135,0.0003355,2]
[426559905,1782592248000,-300.08436755,0.0003355,2]
[426559898,1782592248000,-588.23236035,0.0003355,2]
[426559906,1782592248000,-607.54605795,0.0003355,2]
[426559904,1782592248000,-510.92345041,0.0003355,2]
[426559901,1782592248000,-513.70275548,0.0003355,2]
[426559899,1782592248000,-300.0,0.0003355,2]
[426559902,1782592248000,-584.34311185,0.0003355,2]
[426559910,1782592248000,-300.0,0.0003355,2]
[426559919,1782592248000,-300.0,0.0003355,2]
[426559918,1782592248000,-446.43069343,0.0003355,2]
[426559908,1782592248000,-345.56049828,0.0003355,2]
[426559914,1782592248000,-302.02088146,0.0003355,2]
[426559907,1782592248000,-301.98780702,0.0003355,2]
[426559916,1782592248000,-300.0,0.0003355,2]
[426559912,1782592248000,-445.84003865,0.0003355,2]
[426559915,1782592248000,-345.39990021,0.0003355,2]
[426559924,1782592248000,-154.0,0.00033636,30]
[426559930,1782592248000,-958.89915844,0.00033693,2]
[426559920,1782592248000,-300.08436755,0.0003355,2]
[426559929,1782592248000,-958.89915844,0.00033642,2]
[426559900,1782592248000,-597.15298324,0.0003355,2]
[426559909,1782592248000,-1806.56266267,0.0003355,2]
[426559896,1782592248000,-321.0454673,0.0003355,2]
[426559877,1782592248000,-300.0,0.0003355,2]
[426559892,1782592248000,-306.88407502,0.0003355,2]
[426559928,1782592248000,-168.0,0.00033637,30]
[426559869,1782592248000,-7415.3684059,0.00033391,2]
[426559870,1782592248000,-341.68,0.00033486,30]
[426559872,1782592248000,-722.9679739,0.00033514,2]
[426559873,1782592248000,-250.0,0.00033545,7]
[426559871,1782592248000,-1496.6192975,0.00033514,2]
[426559882,1782592248000,-300.0,0.0003355,2]
[426559874,1782592248000,-5288.0,0.00033546,10]
[426559879,1782592248000,-300.0,0.0003355,2]
[426559875,1782592248000,-568.78669375,0.0003355,2]
[426559880,1782592248000,-300.0,0.0003355,2]
[426559876,1782592248000,-300.0,0.0003355,2]
[426559897,1782592248000,-953.92087478,0.0003355,2]
[426559878,1782592248000,-303.21732952,0.0003355,2]
[426559883,1782592248000,-311.09987874,0.0003355,2]
[426559885,1782592248000,-300.1687269,0.0003355,2]
[426559887,1782592248000,-300.0,0.0003355,2]
[426559893,1782592248000,-300.1687351,0.0003355,2]
[426559884,1782592248000,-596.94910817,0.0003355,2]
[426559888,1782592248000,-495.08307749,0.0003355,2]
[426559890,1782592248000,-729.84002325,0.0003355,2]
[426559895,1782592248000,-529.43442734,0.0003355,2]
[426559891,1782592248000,-303.25778654,0.0003355,2]
[426559886,1782592248000,-513.66493967,0.0003355,2]
[426559889,1782592248000,-607.49404731,0.0003355,2]
[426559894,1782592248000,-345.56049828,0.0003355,2]
[426559881,1782592248000,-300.0,0.0003355,2]
[426559925,1782592248000,-180.0,0.00033636,30]